bitfinex-derivatives/quotes_SOLF0:USTF0_20250816
["timestamp","ask_amount","ask_price","bid_price","bid_amount"]
[1755349551482,4.02933213,187.24,187.22,3.03]
[1755349551682,132.04,187.27,187.22,3.03]
[1755349551884,4.02996479,187.26,187.22,3.03]
[1755349552083,4.02996479,187.25,187.22,3.03]
[1755349552282,4.02996479,187.24,187.22,3.03]
[1755349552482,132.04,187.27,187.22,3.03]
[1755349552683,4.03004429,187.26,187.22,3.03]
[1755349552885,4.03004429,187.25,187.18,3.67779969]
[1755349553080,4.03004429,187.24,187.19,3.03]
[1755349553285,4.03004429,187.23,187.19,3.03]
[1755349553584,132.04,187.27,187.18,3.67779969]
[1755349553585,4.22004429,187.22,187.18,3.03]
[1755349553781,4.03004429,187.21,187.18,3.03]
[1755349553982,4.03004429,187.2,187.18,3.03]
[1755349554183,4.03004429,187.19,187.18,3.03]
[1755349554684,0.19,187.22,187.18,3.03]
[1755349554884,4.0317091,187.21,187.19,3.03]
[1755349555085,4.0317091,187.2,187.19,3.03]
[1755349559987,4.2217091,187.2,187.18,3.03]
[1755349560183,0.19,187.18,187.15,3.03]
[1755349560390,4.0317091,187.17,187.16,3.03]
[1755349560789,132.15,187.23,187.15,3.03]
[1755349560990,4.03626102,187.22,187.15,3.03]
[1755349561192,4.03626102,187.21,187.15,3.03]
[1755349561490,4.03626102,187.2,187.15,3.03]
[1755349561790,4.03626102,187.19,187.17,3.67779969]
[1755349561985,4.03626102,187.18,187.17,6.70779969]
[1755349565295,4.03626102,187.18,187.17,3.03]
[1755349566094,4.03626102,187.18,187.07,118.69725912]
[1755349566095,0.19,187.17,187.13,3.03]
[1755349566296,0.19,187.15,187.13,3.03]
[1755349566591,4.22626102,187.14,187.1,3.03]
[1755349566890,0.19,187.12,187.1,3.03]
[1755349567096,4.03626102,187.11,187.1,3.03]
[1755349569091,132.25,187.16,187.1,3.03]
[1755349569390,4.03232423,187.15,187.13,3.03]
[1755349569595,0.19,187.19,187.13,3.03]
[1755349569794,4.03160618,187.18,187.13,3.03]
[1755349569996,4.03160618,187.17,187.13,3.03]
[1755349570186,4.03160618,187.16,187.13,3.03]
[1755349570498,0.19,187.14,187.12,3.03]
[1755349570694,0.19,187.14,187.07,3.67779969]
[1755349570896,0.19,187.13,187.11,3.03]
[1755349571595,0.19,187.15,187.12,3.03]
[1755349571796,4.22082815,187.14,187.12,3.03]
[1755349571996,0.19,187.14,187.12,3.03]
[1755349572200,4.03091426,187.13,187.12,3.03]
[1755349574296,137.77347675,187.21,187.12,3.03]
[1755349574601,4.21804306,187.2,187.12,3.03]
[1755349574793,4.02804306,187.19,187.12,3.03]
[1755349574996,132.29,187.23,187.12,3.03]
[1755349575192,4.02710125,187.22,187.12,3.03]
[1755349575397,4.21710125,187.21,187.14,3.03]
[1755349575699,4.21710125,187.2,187.12,3.03]
[1755349575900,4.02710125,187.19,187.12,3.03]
[1755349576694,4.02710125,187.19,187.13,3.03]
[1755349576898,132.29,187.23,187.13,3.03]
[1755349576899,4.02710125,187.18,187.13,3.03]
[1755349577098,132.29,187.23,187.13,3.03]
[1755349577403,4.0303544,187.22,187.14,3.03]
[1755349577603,4.0303544,187.21,187.14,3.03]
[1755349577801,4.0303544,187.2,187.14,3.03]
[1755349577998,4.0303544,187.19,187.15,3.03]
[1755349578204,132.1,187.23,187.15,3.03]
[1755349578506,4.02985421,187.22,187.15,5.77347675]
[1755349578706,4.02985421,187.21,187.15,5.77347675]
[1755349578907,4.02985421,187.2,187.16,5.3391]
[1755349579103,0.19,187.24,187.17,3.03]
[1755349579304,4.21983037,187.23,187.17,3.03]
[1755349579499,4.21983037,187.22,187.17,3.03]
[1755349579696,4.02983037,187.21,187.17,3.03]
[1755349580804,4.02983037,187.21,187.14,5.3399]
[1755349581009,0.19,187.19,187.15,3.03]
[1755349581401,0.19,187.26,187.15,3.03]
[1755349581702,0.19,187.24,187.15,3.03]
[1755349581902,0.19,187.22,187.15,3.03]
[1755349582103,4.03022432,187.21,187.15,3.03]
[1755349582308,4.03022432,187.2,187.15,3.03]
[1755349582605,4.03022432,187.19,187.15,3.03]
[1755349582903,0.19,187.22,187.15,3.03]
[1755349583097,4.03081807,187.21,187.15,3.03]
[1755349583294,4.03081807,187.2,187.15,3.03]
[1755349583499,4.03081807,187.19,187.15,3.03]
[1755349583705,0.19,187.22,187.15,3.03]
[1755349583908,4.03091265,187.21,187.15,3.03]
[1755349584110,4.03091265,187.2,187.15,3.03]
[1755349584305,4.03091265,187.19,187.15,3.03]
[1755349584502,0.19,187.24,187.15,3.03]
[1755349584705,4.22093024,187.23,187.15,3.03]
[1755349585001,4.03093024,187.22,187.15,3.03]
[1755349585207,4.03093024,187.21,187.15,3.03]
[1755349585506,4.03093024,187.2,187.15,3.03]
[1755349585707,0.19,187.22,187.15,3.03]
[1755349585904,4.03079399,187.21,187.15,3.03]
[1755349586105,4.03079399,187.2,187.15,3.03]
[1755349586301,0.19,187.26,187.17,3.03]
[1755349586498,0.19,187.24,187.17,3.03]
[1755349586704,4.22067938,187.23,187.17,3.03]
[1755349586900,4.22067938,187.22,187.17,3.03]
[1755349587098,4.03067938,187.21,187.17,3.03]
[1755349587311,0.19,187.22,187.17,3.03]
[1755349587507,4.03063441,187.21,187.17,3.03]
[1755349587707,0.19,187.22,187.17,3.03]
[1755349588411,0.19,187.26,187.17,3.03]
[1755349588608,0.19,187.24,187.17,3.03]
[1755349588804,4.03042082,187.23,187.17,3.03]
[1755349589013,4.03042082,187.22,187.17,3.03]
[1755349589210,0.19,187.24,187.17,3.03]
[1755349589411,4.03037786,187.23,187.17,3.03]
[1755349589608,4.03037786,187.22,187.17,3.03]
[1755349589810,0.19,187.24,187.17,3.03]
[1755349590010,4.03037786,187.23,187.17,3.03]
[1755349590215,4.03037786,187.22,187.17,3.03]
[1755349590509,0.19,187.25,187.17,3.03]
[1755349590714,4.22033538,187.24,187.17,3.03]
[1755349591011,4.03033538,187.23,187.17,3.03]
[1755349591202,4.03033538,187.22,187.17,3.03]
[1755349591408,0.19,187.24,187.17,3.03]
[1755349591611,4.03032522,187.23,187.17,3.03]
[1755349591815,4.03032522,187.22,187.17,3.03]
[1755349592012,4.03036826,187.21,187.17,3.03]
[1755349592214,0.19,187.26,187.17,3.03]
[1755349592515,4.22026628,187.25,187.17,3.03]
[1755349592714,4.03026628,187.24,187.17,3.03]
[1755349593011,0.19,187.25,187.17,3.03]
[1755349593012,4.03026628,187.23,187.17,3.03]
[1755349593212,4.03026628,187.22,187.17,3.03]
[1755349593513,0.19,187.24,187.17,3.03]
[1755349593714,4.03048771,187.23,187.17,3.03]
[1755349593911,4.03048771,187.22,187.17,3.03]
[1755349594104,4.03099421,187.21,187.17,3.03]
[1755349594309,132.38,187.27,187.17,3.03]
[1755349594505,132.38,187.27,187.16,8.99912546]
[1755349594506,4.03099421,187.26,187.2,3.03]
[1755349594708,4.03099421,187.25,187.2,3.03]
[1755349595011,4.03099421,187.24,187.2,3.03]
[1755349595214,4.03099421,187.23,187.2,3.03]
[1755349595414,0.19,187.26,187.2,3.03]
[1755349595616,4.03089957,187.25,187.2,3.03]
[1755349595814,4.03089957,187.24,187.2,3.03]
[1755349596014,4.03089957,187.23,187.2,3.03]
[1755349596214,0.19,187.26,187.2,3.03]
[1755349596418,4.03117195,187.25,187.2,3.03]
[1755349596619,4.03117195,187.24,187.2,3.03]
[1755349596820,4.03117195,187.23,187.2,3.03]
[1755349597119,0.19,187.26,187.2,3.03]
[1755349597318,4.03157836,187.25,187.2,3.03]
[1755349597619,4.03157836,187.24,187.2,3.03]
[1755349597818,4.03157836,187.23,187.2,3.03]
[1755349598022,0.19,187.26,187.2,3.03]
[1755349598215,4.03167737,187.25,187.2,8.3682]
[1755349598421,4.03167737,187.24,187.21,3.03]
[1755349598621,0.19,187.28,187.21,3.03]
[1755349598821,4.03163347,187.27,187.21,3.03]
[1755349599120,4.03163347,187.26,187.21,3.03]
[1755349599322,4.03163347,187.25,187.21,3.03]
[1755349599523,4.03163347,187.24,187.21,3.03]
[1755349599716,0.19,187.27,187.21,3.03]
[1755349600017,4.22116192,187.26,187.21,3.03]
[1755349600225,4.03116192,187.25,187.21,3.03]
[1755349600423,4.03116192,187.24,187.21,3.03]
[1755349600619,0.19,187.28,187.21,3.03]
[1755349600819,4.03073456,187.27,187.21,3.03]
[1755349601016,4.03073456,187.26,187.21,3.03]
[1755349601223,4.03073456,187.25,187.21,3.03]
[1755349601424,4.03073456,187.24,187.21,3.03]
[1755349601723,131.98,187.29,187.23,3.03]
[1755349601925,4.03005147,187.28,187.23,3.03]
[1755349602122,4.03005147,187.27,187.23,3.03]
[1755349602326,131.98,187.29,187.23,3.03]
[1755349602524,4.02914883,187.28,187.23,3.03]
[1755349602727,4.02914883,187.27,187.23,5.3372]
[1755349602924,131.98,187.29,187.24,3.03]
[1755349603125,4.02901128,187.28,187.24,3.03]
[1755349603325,131.98,187.29,187.24,3.03]
[1755349603531,0.19,187.27,187.2,3.03]
[1755349603732,4.02793975,187.26,187.2,3.03]
[1755349604034,131.98,187.29,187.23,3.03]
[1755349604233,4.02742287,187.28,187.23,3.03]
[1755349604435,4.02742287,187.27,187.23,3.03]
[1755349604731,131.98,187.29,187.23,3.03]
[1755349604925,0.19,187.27,187.23,3.03]
[1755349605126,4.02742287,187.26,187.2,3.03]
[1755349606438,4.02742287,187.26,187.21,3.03]
[1755349606637,132.17,187.29,187.21,3.03]
[1755349606838,4.02483439,187.28,187.23,3.03]
[1755349607036,131.98,187.29,187.24,3.03]
[1755349607227,4.02381729,187.28,187.24,3.03]
[1755349607432,131.98,187.29,187.24,3.03]
[1755349607633,4.02381729,187.28,187.24,3.03]
[1755349607834,131.98,187.29,187.24,3.03]
[1755349608034,4.02381729,187.28,187.24,3.03]
[1755349608234,131.98,187.29,187.24,3.03]
[1755349608434,4.21312779,187.28,187.22,3.65972546]
[1755349608635,0.19,187.27,187.23,3.03]
[1755349609840,0.19,187.28,187.23,3.14]
[1755349610039,0.19,187.26,187.22,3.14]
[1755349610234,4.21274521,187.25,187.23,3.14]
[1755349610434,0.19,187.25,187.23,3.14]
[1755349610642,0.19,187.25,187.24,3.14]
[1755349611036,4.02281806,187.25,187.24,3.14]
[1755349611341,132.17,187.29,187.24,3.14]
[1755349611342,131.98,187.29,187.24,3.14]
[1755349611543,4.02251234,187.28,187.24,3.14]
[1755349611744,4.02251234,187.27,187.24,3.14]
[1755349611940,4.02251234,187.26,187.24,3.14]
[1755349612143,132.17,187.29,187.24,3.14]
[1755349612341,4.02339494,187.28,187.24,3.14]
[1755349612541,4.02339494,187.27,187.24,3.14]
[1755349612842,4.02339494,187.26,187.24,3.14]
[1755349613045,132.17,187.29,187.24,3.14]
[1755349613241,4.02444266,187.28,187.24,3.14]
[1755349613443,4.02444266,187.27,187.24,3.14]
[1755349613642,4.02444266,187.26,187.24,3.14]
[1755349613840,131.98,187.29,187.22,3.65972546]
[1755349614038,0.19,187.27,187.25,3.14]
[1755349614239,4.02444266,187.26,187.25,3.14]
[1755349615140,4.02444266,187.28,187.22,3.65972546]
[1755349615345,4.02444266,187.27,187.24,3.14]
[1755349615544,131.98,187.29,187.24,3.14]
[1755349615746,4.02571304,187.28,187.24,3.14]
[1755349615945,4.02571304,187.27,187.24,3.14]
[1755349616150,131.98,187.29,187.24,3.14]
[1755349616446,4.02648371,187.28,187.24,3.14]
[1755349616646,131.98,187.29,187.24,3.14]
[1755349616647,4.02648371,187.27,187.24,3.14]
[1755349616847,131.98,187.29,187.24,3.14]
[1755349617045,4.02648371,187.28,187.24,3.14]
[1755349617244,4.02648371,187.27,187.24,3.14]
[1755349617445,4.02648371,187.26,187.24,3.14]
[1755349617646,131.98,187.29,187.24,3.14]
[1755349617848,4.02778144,187.28,187.24,3.14]
[1755349618142,4.02778144,187.27,187.24,3.14]
[1755349618348,4.02778144,187.26,187.24,3.14]
[1755349618542,131.98,187.29,187.24,3.14]
[1755349618744,4.02951299,187.28,187.24,3.14]
[1755349618944,4.02951299,187.27,187.26,3.14]
[1755349620946,4.02951299,187.27,187.23,3.65972546]
[1755349621148,131.98,187.29,187.24,3.14]
[1755349621149,4.21951299,187.26,187.24,3.14]
[1755349621349,4.02951299,187.25,187.21,3.14]
[1755349621550,0.19,187.28,187.21,3.14]
[1755349621741,4.03271062,187.27,187.21,3.14]
[1755349621944,4.03271062,187.26,187.21,3.14]
[1755349622153,4.03271062,187.25,187.22,3.14]
[1755349622454,131.98,187.29,187.22,3.14]
[1755349622646,4.03313924,187.28,187.22,8.4775]
[1755349622841,4.03313924,187.27,187.23,6.79972546]
[1755349623047,4.03313924,187.26,187.24,3.14]
[1755349623249,131.98,187.29,187.24,8.4769]
[1755349623450,131.98,187.29,187.25,3.14]
[1755349623451,4.03345007,187.28,187.25,3.14]
[1755349623647,4.03345007,187.27,187.25,3.14]
[1755349623846,4.03345007,187.26,187.25,3.14]
[1755349626352,0.18,187.25,187.14,3.14]
[1755349626552,0.18,187.23,187.14,6.79972546]
[1755349626748,0.18,187.21,187.15,3.14]
[1755349626951,4.21345007,187.2,187.15,3.14]
[1755349627253,4.035698,187.19,187.15,3.14]
[1755349627460,4.035698,187.18,187.15,3.14]
[1755349627753,0.18,187.22,187.15,3.14]
[1755349628050,4.03597109,187.21,187.15,3.14]
[1755349628251,4.03597109,187.2,187.15,3.14]
[1755349628451,4.03597109,187.19,187.15,3.14]
[1755349628648,4.03597109,187.18,187.15,3.14]
[1755349628852,4.48794811,187.27,187.16,3.65972546]
[1755349629052,4.03472374,187.26,187.22,3.14]
[1755349629354,4.66794811,187.29,187.23,3.14]
[1755349629355,4.03472374,187.25,187.23,3.14]
[1755349629548,0.18,187.29,187.23,3.14]
[1755349629741,4.03469478,187.28,187.23,3.14]
[1755349629944,4.03469478,187.27,187.23,3.14]
[1755349630152,4.03469478,187.26,187.24,3.14]
[1755349630453,131.92,187.3,187.24,3.14]
[1755349630649,4.03495644,187.29,187.24,3.14]
[1755349630951,4.03495644,187.28,187.24,3.14]
[1755349631254,4.03495644,187.27,187.24,3.14]
[1755349631452,4.03495644,187.26,187.24,3.14]
[1755349631656,0.18,187.31,187.24,3.14]
[1755349631949,4.03515442,187.3,187.25,6.79972546]
[1755349632149,4.03515442,187.29,187.26,3.14]
[1755349632351,4.03515442,187.28,187.27,3.14]
[1755349633651,0.18,187.33,187.27,3.14]
[1755349633854,70.31896485,187.38,187.13,142.6203]
[1755349633855,4.03406639,187.32,187.31,3.65972546]
[1755349634045,4.03406639,187.32,187.31,6.79972546]
[1755349634549,62.17129128,187.38,187.32,3.14]
[1755349634854,62.17129128,187.38,187.34,3.65972546]
[1755349635057,62.17129128,187.38,187.37,3.14]
[1755349635657,132.55096073,187.39,187.35,3.14]
[1755349637258,132.55096073,187.39,187.33,5.75479164]
[1755349637459,0.18,187.38,187.35,3.14]
[1755349637658,0.18,187.38,187.36,3.14]
[1755349638556,0.18,187.38,187.33,5.75479164]
[1755349638754,132.55096073,187.39,187.37,3.04]
[1755349638959,132.73096073,187.39,187.37,3.04]
[1755349640355,132.55096073,187.39,187.34,3.04]
[1755349642662,132.55096073,187.39,187.33,3.04]
[1755349642959,132.55096073,187.39,187.21,62.0]
[1755349642960,0.18,187.38,187.29,3.04]
[1755349643358,132.73096073,187.39,187.29,3.04]
[1755349643557,132.73096073,187.39,187.3,5.3353]
[1755349643762,132.73096073,187.39,187.31,3.04]
[1755349644062,132.55096073,187.39,187.33,3.04]
[1755349644263,0.61096073,187.39,187.34,3.04]
[1755349646960,0.18,187.38,187.34,3.04]
[1755349648558,0.18,187.37,187.29,5.3356]
[1755349648861,0.61096073,187.39,187.36,3.04]
[1755349649162,0.18,187.37,187.36,3.04]
[1755349649360,0.18,187.38,187.36,3.04]
[1755349649962,0.18,187.37,187.36,3.04]
[1755349650559,0.61096073,187.39,187.36,3.04]
[1755349650965,0.18,187.38,187.36,3.04]
[1755349651366,0.61096073,187.39,187.36,3.04]
[1755349651565,0.18,187.38,187.3,3.04]
[1755349653765,3.99166784,187.37,187.3,3.04]
[1755349653969,0.18,187.35,187.3,3.04]
[1755349654166,0.18,187.34,187.3,3.04]
[1755349654367,0.18,187.36,187.31,3.04]
[1755349654568,0.18,187.34,187.31,3.04]
[1755349654865,0.18,187.33,187.31,3.04]
[1755349655070,0.18,187.33,187.32,3.04]
[1755349655570,0.18,187.33,187.26,3.04]
[1755349655769,0.18,187.36,187.27,3.04]
[1755349656068,3.99299116,187.35,187.27,3.04]
[1755349656269,3.99299116,187.34,187.27,3.04]
[1755349656669,4.17299116,187.34,187.27,3.04]
[1755349656871,0.18,187.34,187.27,3.04]
[1755349657566,131.86,187.37,187.27,3.04]
[1755349657567,0.18,187.32,187.27,3.04]
[1755349657870,147.89,187.37,187.21,3.04]
[1755349657871,0.18,187.3,187.21,3.04]
[1755349658269,0.18,187.37,187.25,3.04]
[1755349658460,3.9946267,187.36,187.25,3.04]
[1755349658669,4.1746267,187.35,187.28,3.04]
[1755349658864,3.9946267,187.34,187.28,3.04]
[1755349659468,3.9946267,187.34,187.29,3.04]
[1755349662270,0.79096073,187.39,187.26,3.04]
[1755349662472,3.995936,187.38,187.3,3.04]
[1755349662670,3.995936,187.37,187.3,3.04]
[1755349662872,0.61096073,187.39,187.35,3.04]
[1755349663275,3.99528183,187.38,187.35,3.04]
[1755349663571,0.61096073,187.39,187.35,3.04]
[1755349663780,3.99542603,187.38,187.35,3.04]
[1755349663974,0.61096073,187.39,187.35,3.04]
[1755349664175,3.99542603,187.38,187.35,3.04]
[1755349664370,0.61096073,187.39,187.33,5.3345]
[1755349664571,3.99565319,187.38,187.34,3.04]
[1755349664772,0.79096073,187.39,187.34,3.04]
[1755349664972,3.99565319,187.38,187.34,3.04]
[1755349665176,0.18,187.38,187.34,3.04]
[1755349665475,0.18,187.38,187.3,3.04]
[1755349665677,0.61096073,187.39,187.3,3.04]
[1755349665678,0.18,187.36,187.3,3.04]
[1755349666172,0.79096073,187.39,187.3,8.3753]
[1755349666379,0.18,187.37,187.31,3.04]
[1755349666575,0.61096073,187.39,187.27,3.04]
[1755349666576,0.18,187.35,187.27,3.04]
[1755349666776,3.98551651,187.34,187.27,3.04]
[1755349667377,3.98551651,187.34,187.28,3.04]
[1755349667579,0.18,187.35,187.28,3.04]
[1755349668178,3.98716926,187.34,187.28,8.3759]
[1755349668374,0.18,187.35,187.28,8.3759]
[1755349668375,0.18,187.35,187.29,3.04]
[1755349668579,0.61096073,187.39,187.3,5.3354]
[1755349668580,0.79096073,187.39,187.3,5.3354]
[1755349668782,3.98712455,187.38,187.31,3.07]
[1755349668984,3.98712455,187.37,187.31,3.07]
[1755349669282,3.98712455,187.36,187.31,3.07]
[1755349669477,3.98712455,187.35,187.31,3.07]
[1755349669680,0.18,187.37,187.31,3.07]
[1755349669877,3.98759506,187.36,187.31,3.07]
[1755349670077,3.98759506,187.35,187.31,3.07]
[1755349670273,0.61096073,187.39,187.32,3.07]
[1755349670684,0.61096073,187.39,187.34,5.334]
[1755349670876,0.61096073,187.39,187.35,3.07]
[1755349672279,3.99110407,187.38,187.35,3.07]
[1755349672475,0.61096073,187.39,187.35,3.07]
[1755349673080,0.61096073,187.39,187.38,5.3331]
[1755349673282,0.61096073,187.39,187.38,3.07]
[1755349673482,4.60524563,187.39,187.38,3.07]
[1755349676974,0.61096073,187.39,187.38,3.07]
[1755349677181,0.61096073,187.39,187.38,8.4031]
[1755349678181,0.18,187.46,187.41,3.07]
[1755349678385,3.99804253,187.45,187.41,3.07]
[1755349678581,3.99804253,187.44,187.41,3.07]
[1755349678880,3.99804253,187.43,187.41,3.07]
[1755349679085,3.99804253,187.42,187.41,3.07]
[1755349679984,0.18,187.5,187.39,3.07]
[1755349680186,8.55042367,187.49,187.39,3.07]
[1755349680383,3.99659164,187.48,187.39,3.07]
[1755349680689,3.99659164,187.48,187.43,3.07]
[1755349680690,8.55049415,187.47,187.43,3.07]
[1755349680885,0.18,187.45,187.43,3.07]
[1755349681083,3.99659164,187.44,187.43,3.07]
[1755349681489,3.99659164,187.44,187.4,3.07]
[1755349681690,3.99574756,187.43,187.41,3.07]
[1755349681883,3.99592603,187.42,187.41,3.07]
[1755349682295,0.18,187.46,187.41,3.07]
[1755349682483,0.18,187.44,187.41,3.07]
[1755349682690,4.17523532,187.43,187.41,3.07]
[1755349682886,0.18,187.43,187.41,3.07]
[1755349683887,0.18,187.43,187.42,3.07]
[1755349684192,3.99451336,187.43,187.42,3.07]
[1755349686092,0.18,187.45,187.42,3.07]
[1755349686293,3.99284261,187.44,187.43,3.07]
[1755349687288,4.17284261,187.44,187.38,3.65144318]
[1755349687493,3.99176822,187.43,187.39,3.07]
[1755349687696,0.18,187.42,187.39,3.07]
[1755349687898,0.18,187.42,187.35,5.3338]
[1755349688093,0.18,187.42,187.4,3.07]
[1755349688598,0.18,187.41,187.4,3.07]
[1755349688795,0.18,187.41,187.34,3.07]
[1755349689197,0.18,187.39,187.34,3.07]
[1755349689399,0.18,187.37,187.35,3.07]
[1755349689597,0.18,187.37,187.31,8.98644318]
[1755349689800,0.18,187.38,187.36,3.07]
[1755349689997,0.18,187.4,187.37,3.07]
[1755349690302,4.48794811,187.44,187.38,3.07]
[1755349690502,0.18,187.42,187.38,3.07]
[1755349690702,3.99206887,187.41,187.38,3.07]
[1755349690900,3.99206887,187.4,187.38,3.07]
[1755349691103,0.18,187.42,187.38,3.07]
[1755349691399,3.99173376,187.41,187.38,3.07]
[1755349691592,0.18,187.41,187.39,3.07]
[1755349692503,4.17171592,187.4,187.39,3.07]
[1755349692904,3.99171592,187.4,187.39,3.07]
[1755349693206,0.18,187.42,187.4,3.07]
[1755349693507,0.18,187.4,187.38,3.07]
[1755349693706,0.18,187.4,187.37,3.65144318]
[1755349693903,0.18,187.4,187.39,3.07]
[1755349694109,0.18,187.44,187.37,3.07]
[1755349694309,0.18,187.42,187.37,3.07]
[1755349694511,0.18,187.4,187.38,3.07]
[1755349694809,0.18,187.4,187.39,3.07]
[1755349695205,3.99172473,187.4,187.39,3.07]
[1755349695411,3.99172473,187.4,187.34,3.65144318]
[1755349695606,0.18,187.46,187.38,3.07]
[1755349695911,4.17086871,187.45,187.38,3.07]
[1755349696111,3.99086871,187.44,187.38,3.07]
[1755349696507,3.99086871,187.44,187.39,5.3328]
[1755349696706,3.99086871,187.44,187.4,3.07]
[1755349697109,0.18,187.47,187.41,3.07]
[1755349697307,3.98670017,187.46,187.41,3.07]
[1755349697512,3.98670017,187.45,187.41,3.07]
[1755349697710,4.48794811,187.49,187.41,3.07]
[1755349697910,3.98618016,187.48,187.41,3.07]
[1755349698110,3.98618016,187.47,187.41,3.07]
[1755349698419,3.98618016,187.46,187.44,3.07]
[1755349698613,0.18,187.5,187.44,3.07]
[1755349698802,0.17,187.48,187.44,3.07]
[1755349699006,3.98527841,187.47,187.44,3.07]
[1755349699203,3.98527841,187.46,187.44,3.07]
[1755349699507,136.97794811,187.51,187.45,3.0]
[1755349699703,3.98474637,187.5,187.47,3.0]
[1755349699911,0.17,187.54,187.47,3.0]
[1755349699912,4.65794811,187.54,187.47,3.0]
[1755349700211,8.69767591,187.53,187.47,3.0]
[1755349700413,3.98420351,187.52,187.47,3.0]
[1755349700611,3.98420351,187.51,187.47,3.0]
[1755349700806,3.98420351,187.5,187.47,3.0]
[1755349701108,0.17,187.53,187.47,3.0]
[1755349701314,0.17,187.51,187.47,3.0]
[1755349701615,4.15365154,187.5,187.48,3.0]
[1755349701816,0.17,187.5,187.48,3.0]
[1755349702108,0.17,187.5,187.49,3.0]
[1755349702308,3.9832354,187.5,187.49,3.0]
[1755349703208,0.17,187.49,187.45,3.0]
[1755349703409,0.17,187.47,187.41,3.0]
[1755349703603,3.98476324,187.46,187.41,3.0]
[1755349703807,0.17,187.46,187.41,3.0]
[1755349704010,0.17,187.49,187.41,3.0]
[1755349704211,0.17,187.47,187.41,3.0]
[1755349704410,3.98476452,187.46,187.41,3.0]
[1755349704904,4.15476452,187.46,187.41,3.0]
[1755349705107,0.17,187.46,187.41,3.0]
[1755349705913,4.48794811,187.52,187.42,3.0]
[1755349706210,3.98520864,187.51,187.46,3.0]
[1755349706412,3.98520864,187.5,187.47,3.0]
[1755349706615,4.48794811,187.54,187.47,3.0]
[1755349706816,3.98521818,187.53,187.47,3.0]
[1755349707115,3.98521818,187.52,187.47,3.0]
[1755349707317,3.98521818,187.51,187.47,3.0]
[1755349707515,3.98521818,187.5,187.47,3.0]
[1755349707715,4.48794811,187.54,187.47,3.0]
[1755349707916,0.17,187.52,187.47,3.0]
[1755349708117,4.15526992,187.51,187.48,3.0]
[1755349708317,3.98526992,187.5,187.48,3.0]
[1755349708513,0.17,187.51,187.45,5.75305003]
[1755349708705,3.98461053,187.5,187.45,5.75305003]
[1755349708907,0.17,187.52,187.46,3.0]
[1755349709105,4.15474577,187.51,187.46,3.0]
[1755349709314,3.98474577,187.5,187.46,3.0]
[1755349710218,4.15474577,187.5,187.46,3.0]
[1755349710417,3.98474577,187.49,187.46,3.0]
[1755349710717,0.17,187.5,187.47,3.0]
[1755349710916,3.98424814,187.49,187.47,3.0]
[1755349711216,3.98424814,187.48,187.47,3.0]
[1755349711418,3.98424814,187.49,187.47,3.0]
[1755349711714,4.46755554,187.55,187.43,3.0]